bitfinex-derivatives/quotes_BTCF0:USTF0_20210703
["timestamp","ask_amount","ask_price","bid_price","bid_amount"]
[1625349114225,0.48115088,34850.0,34849.0,3.43376829]
[1625349114477,0.48115088,34850.0,34849.0,3.79234373]
[1625349114725,0.48115088,34850.0,34849.0,4.28725694]
[1625349119333,0.24057544,34850.0,34849.0,4.28725694]
[1625349119934,0.24057544,34856.0,34849.0,4.28725694]
[1625349120134,0.24057544,34856.0,34849.0,6.41039688]
[1625349120384,0.24057544,34856.0,34850.0,0.06345854]
[1625349120486,0.24057544,34856.0,34855.0,2.36363274]
[1625349120584,0.24057544,34856.0,34855.0,2.63322274]
[1625349120685,0.24057544,34856.0,34855.0,2.69222274]
[1625349120885,0.24057544,34856.0,34855.0,3.83981469]
[1625349122888,0.24057544,34856.0,34855.0,5.14605657]
[1625349124591,0.24057544,34856.0,34855.0,5.08705657]
[1625349125293,0.24057544,34856.0,34855.0,5.14605657]
[1625349125393,0.24057544,34856.0,34855.0,5.08705657]
[1625349125494,0.24057544,34856.0,34855.0,5.14605657]
[1625349126047,0.24057544,34856.0,34855.0,5.08705657]
[1625349127098,0.24057544,34856.0,34855.0,5.14605657]
[1625349129101,0.24057544,34856.0,34855.0,5.08705657]
[1625349129601,0.24057544,34856.0,34855.0,3.78081469]
[1625349131451,0.24057544,34856.0,34855.0,3.83981469]
[1625349131552,0.24057544,34856.0,34855.0,3.78081469]
[1625349132955,0.24057544,34856.0,34855.0,3.72181469]
[1625349133056,0.24057544,34856.0,34855.0,3.78081469]
[1625349135313,0.24057544,34856.0,34855.0,2.63768113]
[1625349135465,0.24057544,34856.0,34855.0,2.42709113]
[1625349136515,0.24057544,34856.0,34855.0,3.57280101]
[1625349136615,0.46666544,34856.0,34855.0,3.57280101]
[1625349136816,0.46666544,34856.0,34855.0,3.56834262]
[1625349136919,0.97433431,34856.0,34855.0,0.78951174]
[1625349137367,0.97433431,34856.0,34855.0,0.73051174]
[1625349137919,0.97433431,34856.0,34855.0,0.24057544]
[1625349137920,3.85119539,34856.0,34855.0,0.24057544]
[1625349139170,5.20500368,34856.0,34855.0,0.24057544]
[1625349140576,3.85119539,34856.0,34855.0,0.24057544]
[1625349143482,3.85119539,34856.0,34852.0,0.08204525]
[1625349143836,3.85119539,34856.0,34853.0,0.0044612]
[1625349143934,1.01542652,34854.0,34853.0,0.08647139]
[1625349144285,2.20023188,34854.0,34853.0,0.08647139]
[1625349144537,2.44080732,34854.0,34853.0,0.08647139]
[1625349144737,2.44080732,34854.0,34853.0,0.14547139]
[1625349145138,0.74837334,34854.0,34853.0,0.55529272]
[1625349145637,0.32534623,34854.0,34853.0,2.19380069]
[1625349146037,0.32534623,34854.0,34853.0,2.25280069]
[1625349146187,0.24057544,34854.0,34853.0,3.3998408]
[1625349146538,0.24057544,34854.0,34853.0,3.64041624]
[1625349146738,0.24057544,34854.0,34853.0,4.94957783]
[1625349147339,0.24057544,34854.0,34853.0,6.42168436]
[1625349149492,0.24057544,34854.0,34853.0,6.69436436]
[1625349154457,0.24057544,34854.0,34853.0,5.22225783]
[1625349157610,0.24057544,34854.0,34853.0,6.69412712]
[1625349159617,0.44358544,34854.0,34853.0,5.22225783]
[1625349159716,0.44358544,34854.0,34853.0,4.94957783]
[1625349161570,0.24057544,34854.0,34853.0,4.94957783]
[1625349162122,0.24057544,34854.0,34853.0,5.19336783]
[1625349162921,0.24057544,34854.0,34853.0,6.6652564]
[1625349167435,0.43290544,34854.0,34853.0,6.6652564]
[1625349167536,0.43290544,34854.0,34853.0,5.19336783]
[1625349167686,0.43290544,34854.0,34853.0,4.94957783]
[1625349168938,0.43290544,34854.0,34853.0,3.64041624]
[1625349169493,0.51775417,34854.0,34853.0,3.64041624]
[1625349170189,0.51775417,34854.0,34853.0,3.58141624]
[1625349170491,0.43290544,34854.0,34853.0,3.58141624]
[1625349170944,0.94132032,34854.0,34853.0,3.58141624]
[1625349171196,0.94132032,34854.0,34853.0,3.52241624]
[1625349171346,1.61919043,34854.0,34853.0,2.43437613]
[1625349171649,0.51778255,34854.0,34853.0,4.89433363]
[1625349172051,0.43290544,34854.0,34853.0,4.89433363]
[1625349172551,0.51778199,34854.0,34853.0,3.5823563]
[1625349172700,0.32545199,34854.0,34853.0,3.5823563]
[1625349172951,0.32545199,34854.0,34853.0,4.89463149]
[1625349173102,0.32545199,34854.0,34853.0,4.83563149]
[1625349173202,0.32545199,34854.0,34853.0,4.89463149]
[1625349173303,0.32545199,34854.0,34853.0,4.83563149]
[1625349173404,0.32545199,34854.0,34853.0,4.89463149]
[1625349173502,0.32545199,34854.0,34853.0,4.83563149]
[1625349173604,0.32545199,34854.0,34853.0,4.89463149]
[1625349174406,0.32545199,34854.0,34853.0,4.83563149]
[1625349174506,0.32545199,34854.0,34853.0,4.89463149]
[1625349174609,0.24057544,34854.0,34853.0,4.83563149]
[1625349174959,0.24057544,34854.0,34853.0,4.89463149]
[1625349175057,0.24057544,34854.0,34853.0,4.83563149]
[1625349175309,1.4273541,34854.0,34853.0,3.5233563]
[1625349175859,1.03741908,34854.0,34853.0,3.5233563]
[1625349176262,2.73271466,34854.0,34853.0,2.37537613]
[1625349179120,1.71557121,34854.0,34853.0,3.52441429]
[1625349179570,2.73254904,34854.0,34853.0,2.37537613]
[1625349180472,2.73254904,34854.0,34853.0,2.13480069]
[1625349180573,2.73254904,34854.0,34853.0,1.15169591]
[1625349180925,3.91904594,34854.0,34853.0,1.15169591]
[1625349181524,3.97804594,34854.0,34853.0,1.15169591]
[1625349181926,3.97804594,34854.0,34853.0,0.15109591]
[1625349182027,0.5,34853.0,34851.0,0.9859415]
[1625349182127,0.5,34853.0,34851.0,0.5999415]
[1625349182238,0.5,34853.0,34851.0,0.5707415]
[1625349182347,0.559,34853.0,34851.0,0.3821415]
[1625349182430,0.04818193,34852.0,34847.0,1.27239598]
[1625349182543,0.118,34851.0,34847.0,1.24269598]
[1625349182679,0.5,34850.0,34839.0,0.09111501]
[1625349182779,0.059,34847.0,34829.0,1.48577404]
[1625349182930,0.5,34839.0,34829.0,1.44337404]
[1625349183036,0.5,34839.0,34829.0,0.34267404]
[1625349183152,0.559,34839.0,34824.0,1.18703408]
[1625349183245,0.059,34829.0,34808.0,1.49551945]
[1625349183379,0.118,34824.0,34808.0,1.49551945]
[1625349183530,0.5,34823.0,34808.0,1.49551945]
[1625349183628,0.559,34823.0,34808.0,1.40641945]
[1625349183729,0.66622029,34823.0,34809.0,0.00446186]
[1625349183880,0.66622029,34823.0,34808.0,1.21788131]
[1625349183980,0.66622029,34823.0,34808.0,1.13668131]
[1625349184084,0.0482232,34822.0,34808.0,1.13668131]
[1625349184201,0.3692632,34822.0,34808.0,1.13668131]
[1625349184290,0.5,34821.0,34802.0,0.9759]
[1625349184391,0.618,34821.0,34802.0,0.9411]
[1625349184588,0.04824602,34820.0,34802.0,0.9411]
[1625349184699,0.5,34819.0,34779.0,1.99318276]
[1625349184787,0.057,34818.0,34779.0,1.99318276]
[1625349184894,1.25551176,34780.0,34779.0,1.99318276]
[1625349185091,1.25551176,34780.0,34779.0,1.99764116]
[1625349185339,1.25551176,34780.0,34773.0,0.057]
[1625349185447,1.25551176,34780.0,34767.0,2.00037459]
[1625349185637,1.25551176,34780.0,34767.0,2.05937459]
[1625349185739,1.37351176,34780.0,34767.0,0.059]
[1625349185940,1.43251176,34780.0,34767.0,0.059]
[1625349186041,1.37351176,34780.0,34767.0,0.059]
[1625349186443,1.37351176,34780.0,34767.0,0.118]
[1625349186592,1.31451176,34780.0,34767.0,0.059]
[1625349186692,1.37351176,34780.0,34767.0,0.059]
[1625349186895,0.91714632,34768.0,34767.0,0.059]
[1625349187442,0.91714632,34768.0,34754.0,0.24057544]
[1625349187543,0.91714632,34768.0,34764.0,0.29957544]
[1625349187645,0.91714632,34768.0,34764.0,0.35857544]
[1625349188047,0.24057544,34780.0,34764.0,0.35857544]
[1625349188848,0.24057544,34784.0,34779.0,0.72172632]
[1625349189046,0.24057544,34784.0,34779.0,1.06037632]
[1625349189195,0.24057544,34784.0,34779.0,1.11937632]
[1625349190849,0.24057544,34784.0,34783.0,0.24057544]
[1625349190998,0.24057544,34784.0,34783.0,0.29957544]
[1625349191802,0.24057544,34784.0,34783.0,0.35857544]
[1625349191903,0.24057544,34784.0,34783.0,0.29957544]
[1625349192254,0.24057544,34784.0,34783.0,0.35857544]
[1625349192757,0.24057544,34784.0,34783.0,0.29957544]
[1625349193504,0.24057544,34784.0,34783.0,0.35857544]
[1625349207492,0.24057544,34791.0,34783.0,0.35857544]
[1625349208299,0.24057544,34794.0,34783.0,0.35857544]
[1625349208393,0.24057544,34794.0,34783.0,0.41557544]
[1625349208494,0.24057544,34794.0,34783.0,0.35857544]
[1625349208994,0.24057544,34794.0,34793.0,0.59915088]
[1625349209195,0.24057544,34794.0,34793.0,0.54458847]
[1625349209294,0.24057544,34794.0,34793.0,0.48558847]
[1625349209395,0.24057544,34794.0,34793.0,0.54458847]
[1625349210854,0.24057544,34794.0,34793.0,0.54015088]
[1625349211701,0.24057544,34794.0,34793.0,0.54458722]
[1625349213001,0.24057544,34794.0,34793.0,0.30401178]
[1625349215057,0.24057544,34794.0,34793.0,0.29957544]
[1625349215357,0.24057544,34794.0,34793.0,0.36301194]
[1625349216408,0.24057544,34794.0,34793.0,0.30401194]
[1625349216611,0.24057544,34794.0,34793.0,0.0634365]
[1625349216711,0.45488544,34794.0,34793.0,0.0044365]
[1625349216914,0.45488544,34794.0,34788.0,0.24057544]
[1625349217013,0.45488544,34794.0,34783.0,0.24057544]
[1625349217014,0.69546088,34794.0,34783.0,0.24057544]
[1625349217114,0.69546088,34794.0,34783.0,0.29957544]
[1625349217216,0.70969662,34794.0,34783.0,0.29957544]
[1625349217415,0.01423593,34793.0,34784.0,0.00443734]
[1625349217565,0.07323593,34793.0,34784.0,0.00443734]
[1625349218066,0.01423639,34792.0,34784.0,0.00443734]
[1625349218316,0.01423639,34792.0,34784.0,0.06343734]
[1625349218519,0.01423639,34792.0,34784.0,0.00443734]
[1625349218620,0.01423624,34791.0,34785.0,0.00443749]
[1625349218820,0.01423624,34791.0,34785.0,0.06343749]
[1625349219021,0.48115088,34786.0,34785.0,0.06343749]
[1625349219122,0.73442088,34786.0,34785.0,0.059]
[1625349219223,0.73442088,34786.0,34783.0,0.24057544]
[1625349219322,0.73442088,34786.0,34783.0,0.29957544]
[1625349219423,0.73442088,34786.0,34785.0,0.00443764]
[1625349219624,0.73442088,34786.0,34785.0,0.059]
[1625349219927,0.73442088,34786.0,34785.0,0.06343747]
[1625349229793,0.73442088,34786.0,34785.0,0.00443747]
[1625349229894,0.73442088,34786.0,34780.0,0.9057]
[1625349230444,0.73442088,34786.0,34781.0,0.00443598]
[1625349230544,0.85242088,34786.0,34781.0,0.00443598]
[1625349231094,0.48115088,34782.0,34781.0,0.00443598]
[1625349231197,0.48115088,34782.0,34780.0,0.9057]
[1625349232099,0.48115088,34782.0,34780.0,0.9647]
[1625349232198,0.48115088,34782.0,34780.0,0.9057]
[1625349232299,0.48115088,34782.0,34781.0,0.00443602]
[1625349232399,0.48115088,34782.0,34781.0,0.31218602]
[1625349232598,0.48115088,34782.0,34781.0,0.25318602]
[1625349233707,0.48115088,34782.0,34781.0,0.31218602]
[1625349234004,0.48115088,34782.0,34781.0,0.37118602]
[1625349237157,0.48115088,34782.0,34781.0,0.53743009]
[1625349239211,0.48115088,34782.0,34781.0,3.88279495]
[1625349239962,0.48115088,34782.0,34781.0,0.37118602]
[1625349240413,0.48115088,34782.0,34781.0,3.88295609]
[1625349242020,0.48115088,34782.0,34781.0,3.21438881]
[1625349242669,0.48115088,34782.0,34781.0,3.15538881]
[1625349242769,0.48115088,34782.0,34781.0,3.21438881]
[1625349242869,0.48115088,34782.0,34781.0,2.04379879]
[1625349243071,0.48115088,34782.0,34781.0,1.98479879]
[1625349243270,0.48115088,34782.0,34781.0,2.04379879]
[1625349243422,0.48115088,34782.0,34781.0,1.98479879]
[1625349243520,0.48115088,34782.0,34781.0,2.04379879]
[1625349243623,2.17754415,34782.0,34781.0,2.04379879]
[1625349243823,2.17754415,34782.0,34781.0,1.98479879]
[1625349243926,2.17754415,34782.0,34781.0,2.04379879]
[1625349244023,2.17754415,34782.0,34781.0,1.98479879]
[1625349244127,1.15974211,34782.0,34781.0,2.04379879]
[1625349244925,0.48115088,34782.0,34781.0,3.21686249]
[1625349246181,1.15967597,34782.0,34781.0,2.04379879]
[1625349246479,1.15967597,34782.0,34781.0,1.73604879]
[1625349246732,3.3647354,34782.0,34781.0,0.06343602]
[1625349246880,3.4237354,34782.0,34781.0,0.00443602]
[1625349247081,3.3647354,34782.0,34781.0,0.00443602]
[1625349247533,4.72176366,34782.0,34781.0,0.00443602]
[1625349250343,4.78076366,34782.0,34781.0,0.00443602]
[1625349250693,4.72176366,34782.0,34781.0,0.00443602]
[1625349250796,4.72176366,34782.0,34781.0,0.06343602]
[1625349250894,4.72176366,34782.0,34781.0,0.00443602]
[1625349253647,4.72176366,34782.0,34780.0,0.9057]
[1625349254151,4.23775747,34781.0,34780.0,0.9057]
[1625349254450,4.23775747,34781.0,34780.0,0.91013612]
[1625349255804,4.23775747,34781.0,34780.0,0.96913612]
[1625349256105,2.88172253,34781.0,34780.0,0.96913612]
[1625349256355,2.88172253,34781.0,34780.0,1.02813612]
[1625349256906,1.69517078,34781.0,34780.0,1.19578243]
[1625349257760,1.69517078,34781.0,34780.0,1.02813612]
[1625349258160,1.69517078,34781.0,34780.0,0.96913612]
[1625349258261,1.69517078,34781.0,34780.0,1.19580408]
[1625349258360,1.69517078,34781.0,34780.0,1.13680408]
[1625349259163,1.69517078,34781.0,34780.0,1.19580408]
[1625349259314,1.69517078,34781.0,34780.0,1.49264408]
[1625349259666,1.69517078,34781.0,34780.0,1.32497612]
[1625349259766,1.69517078,34781.0,34780.0,1.26597612]
[1625349259866,1.69517078,34781.0,34780.0,1.32497612]
[1625349260066,1.69517078,34781.0,34780.0,1.4926839]
[1625349261217,1.69517078,34781.0,34780.0,1.4336839]
[1625349261417,1.69517078,34781.0,34780.0,1.4926839]
[1625349262874,0.67810221,34781.0,34780.0,1.99539105]
[1625349263177,0.48115088,34782.0,34780.0,4.17238384]
[1625349263325,0.24057544,34782.0,34780.0,4.65353472]
[1625349263422,0.18157544,34782.0,34780.0,4.59453472]
[1625349263572,0.18157544,34782.0,34781.0,0.00443488]
[1625349263672,0.18157544,34782.0,34781.0,0.06343488]
[1625349263824,0.41020087,34786.0,34781.0,4.3046107]
[1625349264426,0.24057544,34786.0,34785.0,2.84258747]
[1625349264527,0.24057544,34786.0,34785.0,2.96058747]
[1625349264876,0.24057544,34786.0,34785.0,2.96502198]
[1625349265227,0.24057544,34786.0,34785.0,3.20559742]
[1625349265776,0.24057544,34786.0,34785.0,3.20116291]
[1625349265877,0.74057544,34786.0,34785.0,2.00528747]
[1625349266029,0.74057544,34786.0,34785.0,1.50572238]
[1625349266187,1.02822197,34786.0,34785.0,0.72730108]
[1625349266327,1.04247164,34786.0,34785.0,0.55436617]
[1625349266427,1.04247164,34786.0,34785.0,0.28576617]
[1625349266527,1.04247164,34786.0,34784.0,1.17105954]
[1625349266630,0.98347164,34786.0,34782.0,0.67455376]
[1625349266728,1.04247164,34786.0,34782.0,0.54855376]
[1625349266829,1.21467164,34786.0,34779.0,1.50564798]
[1625349266929,1.15567164,34786.0,34779.0,0.77254798]
[1625349267034,2.7405896,34786.0,34779.0,0.50254798]
[1625349267181,0.26677,34779.0,34771.0,0.10982158]
[1625349267329,0.96230176,34772.0,34762.0,1.66732158]
[1625349267428,0.5,34771.0,34762.0,0.74202158]
[1625349267530,0.559,34771.0,34762.0,0.74202158]
[1625349267629,0.57325769,34771.0,34762.0,0.74202158]
[1625349267729,0.57325769,34771.0,34762.0,0.63942158]
[1625349267829,0.57325769,34771.0,34751.0,1.26]
[1625349267928,0.01425784,34770.0,34751.0,1.26]
[1625349268028,0.07325784,34770.0,34751.0,1.26]
[1625349268180,1.69715534,34758.0,34751.0,1.26]
[1625349268279,2.01337534,34758.0,34751.0,1.26]
[1625349268579,0.31622,34758.0,34751.0,1.26]
[1625349268681,0.37522,34758.0,34751.0,1.26]
[1625349269034,0.5,34757.0,34751.0,1.26]
[1625349269233,0.96230176,34752.0,34751.0,1.26]
[1625349269431,1.02130176,34752.0,34751.0,1.26]
[1625349270887,0.96230176,34752.0,34751.0,1.26]
[1625349271387,0.96230176,34752.0,34751.0,1.319]
[1625349271940,0.96230176,34752.0,34751.0,1.26]
[1625349272139,0.96230176,34752.0,34751.0,1.319]
[1625349272241,1.46927885,34752.0,34751.0,1.319]
[1625349273843,1.46927885,34752.0,34751.0,1.378]
[1625349274044,1.46927885,34752.0,34751.0,1.319]
[1625349274295,0.96230176,34752.0,34751.0,1.319]
[1625349274946,0.96230176,34752.0,34751.0,0.979]
[1625349275352,0.62230176,34752.0,34751.0,0.979]
[1625349275498,1.18732065,34752.0,34751.0,0.979]
[1625349275597,1.18732065,34752.0,34751.0,0.809]
[1625349276049,1.01732065,34752.0,34751.0,0.809]
[1625349276249,1.01732065,34752.0,34751.0,0.729]
[1625349276602,0.93732065,34752.0,34751.0,0.729]
[1625349277304,0.93732065,34752.0,34751.0,0.96957544]
[1625349277504,0.87832065,34752.0,34751.0,0.96957544]
[1625349277854,0.37230176,34752.0,34751.0,0.96957544]
[1625349278055,0.37230176,34752.0,34751.0,0.29957544]
[1625349278155,0.37230176,34752.0,34751.0,0.60423544]
[1625349278304,0.37230176,34752.0,34751.0,0.54523544]
[1625349278405,0.37230176,34752.0,34751.0,0.60423544]
[1625349278505,0.37230176,34752.0,34751.0,0.54523544]
[1625349278706,0.20784392,34754.0,34751.0,0.60423544]
[1625349278806,0.20784392,34754.0,34751.0,0.54523544]
[1625349278906,0.24057544,34756.0,34751.0,0.54523544]
[1625349279058,0.24057544,34756.0,34751.0,0.60423544]
[1625349279258,0.24057544,34756.0,34751.0,0.54523544]
[1625349279357,0.24057544,34756.0,34755.0,0.24057544]
[1625349279456,0.24057544,34756.0,34755.0,0.29957544]
[1625349282465,0.24057544,34756.0,34755.0,0.55052544]
[1625349282566,0.24057544,34756.0,34755.0,0.60952544]
[1625349282718,1.34605231,34762.0,34755.0,0.60952544]
[1625349283068,1.34589127,34767.0,34755.0,0.60952544]
[1625349283316,1.34589127,34767.0,34766.0,0.72172632]
[1625349283417,1.34589127,34767.0,34766.0,0.99616632]
[1625349283517,1.34589127,34767.0,34766.0,1.05516632]
[1625349283618,0.24057544,34772.0,34766.0,1.05516632]
[1625349284521,0.24057544,34772.0,34766.0,0.93716632]
[1625349284619,0.24057544,34772.0,34766.0,0.99616632]
[1625349284821,0.24057544,34772.0,34766.0,0.93716632]
[1625349284970,0.24057544,34772.0,34766.0,1.05516632]
[1625349285071,0.24057544,34772.0,34766.0,0.99616632]
[1625349285170,0.24057544,34772.0,34766.0,0.93716632]
[1625349285272,0.24057544,34772.0,34766.0,0.99616632]
[1625349285422,0.29957544,34772.0,34766.0,0.99616632]
[1625349286020,0.24057544,34772.0,34766.0,0.99616632]
[1625349286120,0.29957544,34772.0,34766.0,0.99616632]
[1625349286822,1.17771292,34771.0,34766.0,0.99616632]
[1625349287071,1.17771292,34771.0,34766.0,1.05516632]
[1625349287224,1.41826065,34772.0,34766.0,1.05516632]
[1625349287372,1.41826065,34772.0,34771.0,0.071943]
[1625349289128,1.41826065,34772.0,34771.0,0.130943]
[1625349289378,1.65883609,34772.0,34771.0,0.130943]
[1625349289729,1.65883609,34772.0,34771.0,0.071943]
[1625349289929,1.65883609,34772.0,34771.0,0.130943]
[1625349290028,1.65883609,34772.0,34771.0,0.071943]
[1625349290534,1.65883609,34772.0,34771.0,0.130943]
[1625349290633,0.48115088,34772.0,34771.0,0.071943]
[1625349291084,0.48115088,34772.0,34771.0,0.130943]
[1625349291184,0.48115088,34772.0,34771.0,0.071943]
[1625349291786,0.48115088,34772.0,34771.0,0.130943]
[1625349291885,1.17795143,34773.0,34771.0,0.189943]
[1625349291989,1.17773186,34774.0,34771.0,0.189943]
[1625349292487,1.17781659,34781.0,34771.0,0.189943]
[1625349293389,1.17781659,34781.0,34780.0,0.48115088]
[1625349293488,1.41820998,34782.0,34780.0,0.73579088]
[1625349293587,1.41820998,34782.0,34780.0,0.79479088]
[1625349294338,0.24057544,34782.0,34780.0,0.79479088]
[1625349295894,0.24057544,34782.0,34780.0,0.73579088]
[1625349297101,0.24057544,34782.0,34780.0,0.79479088]
[1625349297197,1.17824342,34781.0,34780.0,0.79479088]
[1625349297296,1.17824342,34781.0,34780.0,0.73579088]
[1625349297648,1.17824342,34781.0,34780.0,0.79479088]
[1625349298099,1.01005949,34781.0,34780.0,0.79479088]
[1625349298702,1.25081783,34782.0,34780.0,0.79479088]
[1625349300353,1.01058875,34781.0,34780.0,0.79479088]
[1625349300854,1.01058875,34781.0,34780.0,0.59915088]
[1625349300955,1.23605875,34781.0,34780.0,0.59915088]
[1625349301106,1.29505875,34781.0,34780.0,0.54015088]
[1625349301461,3.82167014,34781.0,34780.0,0.54015088]
[1625349301709,3.82167014,34781.0,34780.0,0.48115088]
[1625349301861,3.82167014,34781.0,34766.0,1.6919]
[1625349301862,5.8377065,34781.0,34766.0,1.6919]
[1625349302212,0.01428242,34780.0,34766.0,0.7628]
[1625349302311,0.13228242,34780.0,34766.0,0.7628]
[1625349302412,0.5,34779.0,34766.0,0.6918]
[1625349302612,0.618,34779.0,34766.0,0.6918]
[1625349302712,0.63228352,34779.0,34766.0,0.6918]
[1625349302923,0.01428444,34778.0,34766.0,0.6918]
[1625349303014,0.07328444,34778.0,34766.0,0.6918]
[1625349303117,0.5,34777.0,34766.0,0.6918]
[1625349303216,1.348217,34767.0,34766.0,0.6918]
[1625349303316,5.28226589,34767.0,34766.0,0.6918]
[1625349303413,6.30356765,34767.0,34766.0,0.6918]
[1625349303914,6.30356765,34767.0,34766.0,0.35071127]
[1625349304465,6.30356765,34767.0,34750.0,0.9815]
[1625349304565,6.30356765,34767.0,34750.0,0.9835]
[1625349304866,0.33720499,34755.0,34750.0,0.9835]
[1625349304965,0.54947499,34755.0,34750.0,0.9835]
[1625349305466,0.72172632,34751.0,34750.0,0.9835]
[1625349305667,0.78072632,34751.0,34750.0,0.9835]
[1625349305770,0.72172632,34751.0,34750.0,0.9835]
[1625349306068,0.78072632,34751.0,34750.0,0.9835]
[1625349306718,0.72172632,34751.0,34750.0,0.9835]
[1625349306820,0.78072632,34751.0,34750.0,0.9835]
[1625349307169,0.78072632,34751.0,34750.0,0.059]
[1625349307270,0.78072632,34751.0,34742.0,0.24057544]
[1625349307421,0.48115088,34741.0,34740.0,0.33642363]
[1625349307620,0.77303088,34741.0,34740.0,0.39542363]
[1625349308223,0.77303088,34741.0,34740.0,0.059]
[1625349308524,0.71403088,34741.0,34740.0,0.059]
[1625349308676,0.71403088,34741.0,34740.0,0.0634313]
[1625349308775,0.71403088,34741.0,34740.0,0.0044313]
[1625349308976,0.71403088,34741.0,34737.0,0.33674243]
[1625349309077,0.71403088,34741.0,34740.0,0.059]
[1625349309777,0.48115088,34741.0,34740.0,0.059]
[1625349309931,0.48115088,34741.0,34740.0,0.27669]
[1625349310028,0.48115088,34741.0,34740.0,0.33569]
[1625349310279,0.48115088,34741.0,34740.0,0.34012583]
[1625349310983,0.48115088,34741.0,34740.0,0.67642356]
[1625349311433,0.24057544,34741.0,34740.0,0.916999]
[1625349312386,0.24057544,34741.0,34740.0,0.58070127]
[1625349312886,0.24057544,34741.0,34740.0,0.91699938]
[1625349312985,0.24057544,34741.0,34740.0,0.91256355]
[1625349313235,0.24057544,34741.0,34740.0,0.91699899]
[1625349313337,0.24057544,34741.0,34740.0,0.58070088]
[1625349313735,0.24057544,34741.0,34740.0,0.57626544]
[1625349314739,0.24057544,34741.0,34740.0,0.51726544]
[1625349314839,0.24057544,34741.0,34740.0,0.35857544]
[1625349314940,0.24057544,34741.0,34740.0,0.29957544]
[1625349315189,0.24057544,34741.0,34740.0,0.24057544]
[1625349315289,0.24057544,34741.0,34740.0,0.29957544]
[1625349315392,0.24057544,34741.0,34740.0,0.35857544]
[1625349315540,0.24057544,34741.0,34740.0,0.29957544]
[1625349316342,0.24057544,34741.0,34740.0,0.35857544]
[1625349316691,0.24057544,34741.0,34740.0,0.29957544]
[1625349316792,0.24057544,34741.0,34740.0,0.35857544]
[1625349316895,0.24057544,34741.0,34740.0,0.67280544]
[1625349317394,0.3369944,34747.0,34740.0,0.67280544]
[1625349317495,0.3371046,34749.0,34741.0,0.24057544]
[1625349317700,0.3371046,34749.0,34742.0,0.059]
[1625349317902,0.0861,34789.0,34742.0,0.059]
[1625349317903,0.33706009,34756.0,34749.0,0.059]
[1625349318047,0.33706009,34756.0,34749.0,0.4134]
[1625349318248,0.3370155,34761.0,34749.0,0.4134]
[1625349318649,1.41970863,34765.0,34749.0,0.4134]
[1625349318650,0.33707538,34762.0,34749.0,0.74867845]
[1625349319499,0.33707538,34762.0,34761.0,0.48115088]
[1625349319649,0.33707538,34762.0,34761.0,1.06930632]
[1625349319749,0.33707538,34762.0,34761.0,1.12830632]
[1625349320553,0.33707538,34762.0,34761.0,1.06930632]
[1625349320806,1.01133981,34763.0,34761.0,1.06930632]
[1625349320904,1.01133981,34763.0,34761.0,0.78072632]
[1625349321557,1.01158749,34762.0,34761.0,0.78072632]
[1625349321654,1.26540749,34762.0,34761.0,0.78072632]
[1625349321856,2.44562388,34762.0,34761.0,0.78072632]
[1625349322507,3.79487712,34762.0,34761.0,0.78072632]
[1625349323008,2.44562388,34762.0,34761.0,0.78072632]
[1625349323510,2.44562388,34762.0,34761.0,0.72172632]
[1625349324367,3.79664537,34762.0,34761.0,0.72172632]
[1625349324616,3.79664537,34762.0,34761.0,0.78072632]
[1625349325066,3.79664537,34762.0,34761.0,0.72172632]
[1625349326118,4.47304954,34762.0,34761.0,0.72172632]
[1625349326719,4.47304954,34762.0,34761.0,1.02750632]
[1625349326819,4.47304954,34762.0,34761.0,1.08650632]
[1625349327973,4.47304954,34762.0,34761.0,1.02750632]
[1625349328776,4.47304954,34762.0,34761.0,0.04790632]
[1625349328879,4.47304954,34762.0,34751.0,0.14870313]
[1625349328984,1.0,34761.0,34750.0,0.5051094]
[1625349329079,1.0,34761.0,34742.0,1.51516411]
[1625349329080,3.55121166,34752.0,34739.0,0.33802579]
[1625349329177,0.5,34751.0,34739.0,0.33802579]
[1625349329378,0.059,34750.0,34739.0,0.33492579]
[1625349329489,0.059,34750.0,34739.0,0.23852579]
[1625349329577,0.059,34750.0,34736.0,1.01407737]
[1625349329680,0.5,34739.0,34736.0,0.98507737]
[1625349329827,0.5,34739.0,34736.0,0.52437737]
[1625349329934,0.118,34736.0,34734.0,1.09179026]
[1625349330076,0.118,34734.0,34729.0,1.45191605]
[1625349330176,0.5,34733.0,34729.0,1.39291605]
[1625349330277,0.5,34733.0,34729.0,1.33391605]
[1625349330278,0.69403,34733.0,34729.0,1.33391605]
[1625349330377,0.75303,34733.0,34729.0,1.28961605]
[1625349330486,0.01428961,34732.0,34729.0,1.14201605]
[1625349330577,0.01428961,34732.0,34729.0,1.01981605]
[1625349330729,0.01428961,34732.0,34718.0,1.01506252]
[1625349330880,0.07328961,34732.0,34718.0,1.01506252]
[1625349330980,0.01428961,34732.0,34718.0,1.01506252]
[1625349331178,0.01429031,34731.0,34718.0,1.01506252]
[1625349331332,1.67381539,34721.0,34718.0,0.059]
[1625349331428,1.96482539,34721.0,34706.0,0.057]
[1625349331529,1.96482539,34721.0,34706.0,0.059]
[1625349331632,0.96230176,34707.0,34706.0,0.059]
[1625349331731,1.19870176,34707.0,34706.0,0.059]
[1625349337584,1.19870176,34707.0,34702.0,1.8724]
[1625349337685,1.19870176,34707.0,34706.0,0.059]
[1625349340191,1.19870176,34707.0,34702.0,1.8724]
[1625349340292,1.19870176,34707.0,34706.0,0.059]
[1625349340492,1.19870176,34707.0,34702.0,1.8724]
[1625349340591,1.19870176,34707.0,34706.0,0.059]
[1625349341441,1.19870176,34707.0,34702.0,1.8724]
[1625349341543,1.19870176,34707.0,34706.0,0.059]
[1625349341643,0.24057544,34703.0,34702.0,1.8724]
[1625349341742,0.24057544,34703.0,34702.0,1.9314]
[1625349351008,0.44010544,34703.0,34702.0,1.9314]
[1625349360035,0.45445118,34703.0,34702.0,1.93582259]
[1625349360184,0.44010544,34703.0,34702.0,1.93582259]
[1625349360386,0.24057544,34703.0,34702.0,1.93582259]
[1625349360534,0.72172632,34707.0,34702.0,2.23769259]
[1625349360634,0.98999717,34712.0,34702.0,2.23769259]
[1625349360736,0.98999717,34712.0,34703.0,0.00442188]
[1625349360883,0.98999717,34712.0,34703.0,0.06342188]
[1625349360987,0.01434451,34711.0,34703.0,0.12242188]
[1625349361286,0.01434428,34713.0,34704.0,0.00442188]
[1625349361386,0.01434428,34713.0,34704.0,0.12242188]
[1625349361487,0.99067049,34714.0,34713.0,0.04465572]
[1625349361589,0.99067049,34714.0,34713.0,0.31767572]
[1625349361690,0.93167049,34714.0,34713.0,0.31767572]
[1625349361791,0.72172632,34714.0,34713.0,0.27302]
[1625349361891,0.7360223,34714.0,34713.0,0.33645989]
[1625349362992,0.72172632,34714.0,34713.0,0.33645989]
[1625349363793,0.73602158,34714.0,34713.0,0.33645989]